[Event "*** Titled Tuesday Blitz"]
[Site "Chess.com"]
[Date "2020.04.21"]
[Round "3"]
[White "Pavalamalli"]
[Black "Nara_Kh"]
[Result "0-1"]
[WhiteElo "2098"]
[BlackElo "2351"]
[TimeControl "180+1"]
[EndTime "10:31:23 PDT"]
[Termination "Nara_Kh won by checkmate"]

1. d4 {[%clk 0:02:59.4]} 1... d6 {[%clk 0:02:57.8]} 2. e4 {[%clk 0:02:58.3]}
2... g6 {[%clk 0:02:57.6]} 3. Nf3 {[%clk 0:02:55.9]} 3... Bg7 {[%clk 0:02:57.5]}
4. Bc4 {[%clk 0:02:55.9]} 4... Nf6 {[%clk 0:02:56.5]} 5. Qe2 {[%clk 0:02:55.8]}
5... O-O {[%clk 0:02:55]} 6. O-O {[%clk 0:02:55.5]} 6... c6 {[%clk 0:02:51.7]}
7. e5 {[%clk 0:02:50.6]} 7... Nd5 {[%clk 0:02:49.8]} 8. Bb3 {[%clk 0:02:44.4]}
8... a5 {[%clk 0:02:23.3]} 9. c4 {[%clk 0:02:32]} 9... Nc7 {[%clk 0:02:22.3]}
10. Nc3 {[%clk 0:02:25.4]} 10... Bg4 {[%clk 0:02:05]} 11. Rd1 {[%clk 0:02:01]}
11... Nd7 {[%clk 0:01:53.2]} 12. Bf4 {[%clk 0:01:45.4]} 12... Ne6 {[%clk
0:01:46.2]} 13. Bg3 {[%clk 0:01:43.2]} 13... dxe5 {[%clk 0:01:41.1]} 14. dxe5
{[%clk 0:01:39.1]} 14... Qc7 {[%clk 0:01:41.2]} 15. h3 {[%clk 0:01:18.7]} 15...
Bxf3 {[%clk 0:01:40.2]} 16. Qxf3 {[%clk 0:01:17.6]} 16... Rad8 {[%clk
0:01:32.8]} 17. Qe3 {[%clk 0:00:54.2]} 17... Ndc5 {[%clk 0:01:08.4]} 18. f4
{[%clk 0:00:52.2]} 18... Ra8 {[%clk 0:00:57.3]} 19. Bc2 {[%clk 0:00:50.4]} 19...
a4 {[%clk 0:00:56.4]} 20. Ne4 {[%clk 0:00:49.1]} 20... Nxe4 {[%clk 0:00:53.4]}
21. Bxe4 {[%clk 0:00:46.2]} 21... Qa5 {[%clk 0:00:44.5]} 22. Bh4 {[%clk
0:00:43.1]} 22... Qc5 {[%clk 0:00:41.6]} 23. Qxc5 {[%clk 0:00:42]} 23... Nxc5
{[%clk 0:00:41.7]} 24. Bf3 {[%clk 0:00:41.7]} 24... Rfe8 {[%clk 0:00:40.6]} 25.
Bf2 {[%clk 0:00:41.6]} 25... Ne6 {[%clk 0:00:39.3]} 26. Rd7 {[%clk 0:00:41.4]}
26... Rab8 {[%clk 0:00:26.9]} 27. Ba7 {[%clk 0:00:40.3]} 27... Rbd8 {[%clk
0:00:26.7]} 28. Rxb7 {[%clk 0:00:39.2]} 28... Nxf4 {[%clk 0:00:26.8]} 29. Bxc6
{[%clk 0:00:38]} 29... Rf8 {[%clk 0:00:22.8]} 30. Rxe7 {[%clk 0:00:37.8]} 30...
Rd2 {[%clk 0:00:22.9]} 31. Bf3 {[%clk 0:00:37.2]} 31... Nd3 {[%clk 0:00:20.8]}
32. Bd4 {[%clk 0:00:35.6]} 32... Nxb2 {[%clk 0:00:19.4]} 33. Bxb2 {[%clk
0:00:35.7]} 33... Rxb2 {[%clk 0:00:19.3]} 34. Bd5 {[%clk 0:00:36]} 34... Rd2
{[%clk 0:00:17.6]} 35. Rf1 {[%clk 0:00:35.5]} 35... Bh6 {[%clk 0:00:15.4]} 36.
Rexf7 {[%clk 0:00:34.1]} 36... Rxf7 {[%clk 0:00:15.3]} 37. Bxf7+ {[%clk
0:00:33.1]} 37... Kg7 {[%clk 0:00:15.5]} 38. e6 {[%clk 0:00:33.1]} 38... Be3+
{[%clk 0:00:15.6]} 39. Kh1 {[%clk 0:00:32.9]} 39... Bc5 {[%clk 0:00:16.2]} 40.
Rb1 {[%clk 0:00:32.5]} 40... Kf6 {[%clk 0:00:15.3]} 41. Rf1+ {[%clk 0:00:31]}
41... Ke7 {[%clk 0:00:15.4]} 42. Rb1 {[%clk 0:00:31.1]} 42... Rxa2 {[%clk
0:00:15.1]} 43. Rb7+ {[%clk 0:00:30.9]} 43... Kf6 {[%clk 0:00:15.1]} 44. Rb1
{[%clk 0:00:27.3]} 44... a3 {[%clk 0:00:14.4]} 45. Bg8 {[%clk 0:00:27.1]} 45...
Rb2 {[%clk 0:00:13.8]} 46. Rf1+ {[%clk 0:00:26.6]} 46... Ke7 {[%clk 0:00:14.2]}
47. Rf7+ {[%clk 0:00:26.8]} 47... Ke8 {[%clk 0:00:14.6]} 48. Ra7 {[%clk
0:00:26]} 48... a2 {[%clk 0:00:14.9]} 49. Ra8+ {[%clk 0:00:25.8]} 49... Ke7
{[%clk 0:00:15.2]} 50. Kh2 {[%clk 0:00:25.8]} 50... Kd6 {[%clk 0:00:14.6]} 51.
h4 {[%clk 0:00:25.4]} 51... Ke7 {[%clk 0:00:14.8]} 52. Kh3 {[%clk 0:00:25.8]}
52... Bd6 {[%clk 0:00:15.2]} 53. Bxh7 {[%clk 0:00:25.9]} 53... Rb3+ {[%clk
0:00:15.1]} 54. Kg4 {[%clk 0:00:25.2]} 54... Ra3 {[%clk 0:00:15.6]} 55. Rxa3
{[%clk 0:00:24.6]} 55... Bxa3 {[%clk 0:00:15.5]} 56. Bxg6 {[%clk 0:00:25.5]}
56... a1=Q {[%clk 0:00:15.2]} 57. h5 {[%clk 0:00:25.8]} 57... Qf6 {[%clk
0:00:15.2]} 58. g3 {[%clk 0:00:25.2]} 58... Bc1 {[%clk 0:00:15.3]} 59. Kh3
{[%clk 0:00:24.7]} 59... Qg5 {[%clk 0:00:15.7]} 60. Kg2 {[%clk 0:00:24.9]} 60...
Be3 {[%clk 0:00:15.5]} 61. Kf3 {[%clk 0:00:25]} 61... Bc5 {[%clk 0:00:15.7]} 62.
Ke4 {[%clk 0:00:24.8]} 62... Kf6 {[%clk 0:00:15.9]} 63. Bf7 {[%clk 0:00:23.5]}
63... Qxg3 {[%clk 0:00:16]} 64. h6 {[%clk 0:00:23.6]} 64... Qe3+ {[%clk
0:00:16]} 65. Kd5 {[%clk 0:00:23.5]} 65... Qd4+ {[%clk 0:00:16.4]} 66. Kc6
{[%clk 0:00:23.7]} 66... Qd6+ {[%clk 0:00:16.6]} 67. Kb5 {[%clk 0:00:24]} 67...
Be3 {[%clk 0:00:16.5]} 68. Ka4 {[%clk 0:00:23.2]} 68... Qc5 {[%clk 0:00:16.3]}
69. h7 {[%clk 0:00:22.7]} 69... Kg7 {[%clk 0:00:16.1]} 70. Bg8 {[%clk
0:00:21.4]} 70... Qe7 {[%clk 0:00:16.5]} 71. Kb3 {[%clk 0:00:20.2]} 71... Bd4
{[%clk 0:00:17]} 72. Kc2 {[%clk 0:00:19.9]} 72... Qb4 {[%clk 0:00:17.1]} 73. Kd3
{[%clk 0:00:19.8]} 73... Qc3+ {[%clk 0:00:16.9]} 74. Ke4 {[%clk 0:00:20.2]}
74... Kf8 {[%clk 0:00:17.5]} 75. Kd5 {[%clk 0:00:19.2]} 75... Ke7 {[%clk
0:00:17.9]} 76. Bf7 {[%clk 0:00:18.5]} 76... Bg7 {[%clk 0:00:17.8]} 77. c5
{[%clk 0:00:17.7]} 77... Qd4+ {[%clk 0:00:17.5]} 78. Kc6 {[%clk 0:00:17.9]}
78... Qd8 {[%clk 0:00:17.4]} 79. Kb5 {[%clk 0:00:17.7]} 79... Qc7 {[%clk
0:00:17.7]} 80. c6 {[%clk 0:00:17.7]} 80... Kd6 {[%clk 0:00:17.6]} 81. Be8
{[%clk 0:00:15.4]} 81... Kxe6 {[%clk 0:00:17.5]} 82. Bd7+ {[%clk 0:00:15.5]}
82... Kd6 {[%clk 0:00:16.5]} 83. Kc4 {[%clk 0:00:15.6]} 83... Bh8 {[%clk
0:00:16.9]} 84. Kd3 {[%clk 0:00:15.9]} 84... Qb6 {[%clk 0:00:17.1]} 85. Ke4
{[%clk 0:00:16.2]} 85... Qb4+ {[%clk 0:00:17.2]} 86. Kf5 {[%clk 0:00:16.4]}
86... Qd4 {[%clk 0:00:17.4]} 87. Kg6 {[%clk 0:00:16.5]} 87... Qf6+ {[%clk
0:00:17.6]} 88. Kh5 {[%clk 0:00:16.7]} 88... Qd8 {[%clk 0:00:17.5]} 89. Kg6
{[%clk 0:00:16.7]} 89... Ke5 {[%clk 0:00:17.6]} 90. Kf7 {[%clk 0:00:15.7]} 90...
Qf6+ {[%clk 0:00:17.2]} 91. Ke8 {[%clk 0:00:15.7]} 91... Kd6 {[%clk 0:00:17.6]}
92. c7 {[%clk 0:00:12.1]} 92... Qe7# {[%clk 0:00:17.7]} 0-1

[Event "*** Titled Tuesday Blitz"]
[Site "Chess.com"]
[Date "2020.04.21"]
[Round "3"]
[White "MITerryble"]
[Black "Tayson_7"]
[Result "1/2-1/2"]
[WhiteElo "2857"]
[BlackElo "2704"]
[TimeControl "180+1"]
[EndTime "10:32:33 PDT"]
[Termination "Game drawn - insufficient material"]

1. Nf3 {[%clk 0:03:00.9]} 1... Nf6 {[%clk 0:02:59.5]} 2. b3 {[%clk 0:02:59]}
2... d5 {[%clk 0:02:58.8]} 3. Bb2 {[%clk 0:02:59.5]} 3... Bg4 {[%clk 0:02:59.4]}
4. g3 {[%clk 0:02:53.8]} 4... Nbd7 {[%clk 0:02:56.5]} 5. Bg2 {[%clk 0:02:53.9]}
5... e6 {[%clk 0:02:52.6]} 6. d3 {[%clk 0:02:52.1]} 6... a5 {[%clk 0:02:43.7]}
7. a4 {[%clk 0:02:44.8]} 7... Bd6 {[%clk 0:02:42.6]} 8. O-O {[%clk 0:02:44.5]}
8... O-O {[%clk 0:02:42.5]} 9. Nbd2 {[%clk 0:02:42.7]} 9... c6 {[%clk
0:02:42.3]} 10. h3 {[%clk 0:02:42.3]} 10... Bh5 {[%clk 0:02:42]} 11. Nh4 {[%clk
0:02:42]} 11... Be5 {[%clk 0:02:34.3]} 12. Bxe5 {[%clk 0:02:35.3]} 12... Nxe5
{[%clk 0:02:33.7]} 13. Qe1 {[%clk 0:02:19.3]} 13... Ned7 {[%clk 0:02:11.5]} 14.
g4 {[%clk 0:02:15.7]} 14... Bg6 {[%clk 0:02:11.2]} 15. f4 {[%clk 0:02:16]} 15...
d4 {[%clk 0:01:46.1]} 16. Nc4 {[%clk 0:02:15.9]} 16... Nd5 {[%clk 0:01:43.3]}
17. Qg3 {[%clk 0:01:53.3]} 17... Qe7 {[%clk 0:01:20.8]} 18. Kh1 {[%clk 0:01:41]}
18... Rfe8 {[%clk 0:01:10.5]} 19. Rg1 {[%clk 0:01:32.5]} 19... Nxf4 {[%clk
0:01:05]} 20. Qxf4 {[%clk 0:01:32.7]} 20... Qxh4 {[%clk 0:01:04.8]} 21. Qxd4
{[%clk 0:01:33]} 21... Red8 {[%clk 0:01:03.4]} 22. Rgf1 {[%clk 0:01:25.3]} 22...
Qe7 {[%clk 0:00:51.4]} 23. Qf2 {[%clk 0:01:19.1]} 23... e5 {[%clk 0:00:45.9]}
24. Qe3 {[%clk 0:01:13.3]} 24... f6 {[%clk 0:00:45.1]} 25. Qd2 {[%clk
0:01:05.2]} 25... Qb4 {[%clk 0:00:39.1]} 26. Qxb4 {[%clk 0:00:55.1]} 26... axb4
{[%clk 0:00:40]} 27. Nd6 {[%clk 0:00:55.6]} 27... Nc5 {[%clk 0:00:37.8]} 28. Nc4
{[%clk 0:00:53.8]} 28... e4 {[%clk 0:00:28.9]} 29. Kg1 {[%clk 0:00:41.7]} 29...
Ne6 {[%clk 0:00:28.8]} 30. Kf2 {[%clk 0:00:38.6]} 30... Nd4 {[%clk 0:00:27.5]}
31. Ne3 {[%clk 0:00:33]} 31... Re8 {[%clk 0:00:23.8]} 32. h4 {[%clk 0:00:18.6]}
32... exd3 {[%clk 0:00:22.6]} 33. exd3 {[%clk 0:00:19.5]} 33... Rxe3 {[%clk
0:00:22.7]} 34. Kxe3 {[%clk 0:00:20.4]} 34... Nxc2+ {[%clk 0:00:23.3]} 35. Kd2
{[%clk 0:00:20.6]} 35... Nxa1 {[%clk 0:00:23.9]} 36. Rxa1 {[%clk 0:00:21.5]}
36... Rd8 {[%clk 0:00:24.4]} 37. Bf1 {[%clk 0:00:21.9]} 37... Bf7 {[%clk
0:00:23.7]} 38. a5 {[%clk 0:00:20.3]} 38... Rd4 {[%clk 0:00:20.4]} 39. Be2
{[%clk 0:00:19]} 39... Bxb3 {[%clk 0:00:20.9]} 40. Ke3 {[%clk 0:00:18.2]} 40...
c5 {[%clk 0:00:20.7]} 41. Rc1 {[%clk 0:00:17.3]} 41... Rd5 {[%clk 0:00:19.7]}
42. Bf3 {[%clk 0:00:17.8]} 42... Re5+ {[%clk 0:00:20]} 43. Kd2 {[%clk
0:00:15.9]} 43... Bd5 {[%clk 0:00:19.9]} 44. Be2 {[%clk 0:00:11.1]} 44... Bc6
{[%clk 0:00:15.2]} 45. d4 {[%clk 0:00:11.4]} 45... cxd4 {[%clk 0:00:13.5]} 46.
a6 {[%clk 0:00:11.8]} 46... Ra5 {[%clk 0:00:14.1]} 47. axb7 {[%clk 0:00:11.2]}
47... Bxb7 {[%clk 0:00:14.2]} 48. Rc7 {[%clk 0:00:12.1]} 48... Ra2+ {[%clk
0:00:13.8]} 49. Kd1 {[%clk 0:00:11.4]} 49... Ba6 {[%clk 0:00:13.5]} 50. Bf3
{[%clk 0:00:11]} 50... Ra1+ {[%clk 0:00:10]} 51. Kd2 {[%clk 0:00:09.8]} 51...
Ra2+ {[%clk 0:00:10.5]} 52. Kd1 {[%clk 0:00:10.2]} 52... Ra1+ {[%clk 0:00:11.1]}
53. Kd2 {[%clk 0:00:10.6]} 53... h5 {[%clk 0:00:11.6]} 54. g5 {[%clk 0:00:07.4]}
54... fxg5 {[%clk 0:00:11.1]} 55. hxg5 {[%clk 0:00:08.3]} 55... h4 {[%clk
0:00:11.2]} 56. Bd5+ {[%clk 0:00:07.2]} 56... Kf8 {[%clk 0:00:11.3]} 57. Rf7+
{[%clk 0:00:07.1]} 57... Ke8 {[%clk 0:00:11.7]} 58. Rxg7 {[%clk 0:00:08]} 58...
Rg1 {[%clk 0:00:11.6]} 59. g6 {[%clk 0:00:04.7]} 59... h3 {[%clk 0:00:08.7]} 60.
Rh7 {[%clk 0:00:05.1]} 60... b3 {[%clk 0:00:07.1]} 61. Bxb3 {[%clk 0:00:04]}
61... Rg2+ {[%clk 0:00:07.3]} 62. Ke1 {[%clk 0:00:04]} 62... h2 {[%clk
0:00:07.2]} 63. g7 {[%clk 0:00:03.7]} 63... Rxg7 {[%clk 0:00:06]} 64. Rxh2
{[%clk 0:00:03.1]} 64... Rg3 {[%clk 0:00:06.1]} 65. Bd1 {[%clk 0:00:02.2]} 65...
Re3+ {[%clk 0:00:05.4]} 66. Kd2 {[%clk 0:00:02.8]} 66... Rd3+ {[%clk 0:00:06]}
67. Kc1 {[%clk 0:00:03.7]} 67... Kd7 {[%clk 0:00:06]} 68. Rh7+ {[%clk
0:00:03.1]} 68... Kd8 {[%clk 0:00:04.8]} 69. Rh8+ {[%clk 0:00:03.2]} 69... Kc7
{[%clk 0:00:05]} 70. Rh7+ {[%clk 0:00:04.1]} 70... Kb8 {[%clk 0:00:05.3]} 71.
Rh6 {[%clk 0:00:05]} 71... Rc3+ {[%clk 0:00:04.8]} 72. Kd2 {[%clk 0:00:05.3]}
72... Bb5 {[%clk 0:00:05.1]} 73. Rd6 {[%clk 0:00:05.1]} 73... Kc7 {[%clk
0:00:04.3]} 74. Rxd4 {[%clk 0:00:04.6]} 74... Rc6 {[%clk 0:00:04.9]} 75. Rh4
{[%clk 0:00:04.4]} 75... Rd6+ {[%clk 0:00:05.2]} 76. Kc1 {[%clk 0:00:04.8]}
76... Rc6+ {[%clk 0:00:05.6]} 77. Kb2 {[%clk 0:00:05.1]} 77... Rb6 {[%clk
0:00:06]} 78. Kc3 {[%clk 0:00:04.1]} 78... Rc6+ {[%clk 0:00:05.6]} 79. Kd2
{[%clk 0:00:04.5]} 79... Rd6+ {[%clk 0:00:05.7]} 80. Ke1 {[%clk 0:00:04.7]}
80... Re6+ {[%clk 0:00:06]} 81. Kf2 {[%clk 0:00:04.8]} 81... Rf6+ {[%clk
0:00:06.6]} 82. Kg3 {[%clk 0:00:05.1]} 82... Rd6 {[%clk 0:00:06.4]} 83. Bf3
{[%clk 0:00:05.1]} 83... Bc6 {[%clk 0:00:06.6]} 84. Bg4 {[%clk 0:00:03.9]} 84...
Rd3+ {[%clk 0:00:05.7]} 85. Kf2 {[%clk 0:00:04]} 85... Rd4 {[%clk 0:00:05.9]}
86. Rh7+ {[%clk 0:00:03.8]} 86... Kb6 {[%clk 0:00:06.5]} 87. Be2 {[%clk
0:00:03.3]} 87... Rd6 {[%clk 0:00:06.8]} 88. Rh4 {[%clk 0:00:02.7]} 88... Rf6+
{[%clk 0:00:06.9]} 89. Ke1 {[%clk 0:00:03.6]} 89... Re6 {[%clk 0:00:07.4]} 90.
Rb4+ {[%clk 0:00:03.9]} 90... Kc5 {[%clk 0:00:07.5]} 91. Rc4+ {[%clk 0:00:04.2]}
91... Kd5 {[%clk 0:00:07.6]} 92. Rc2 {[%clk 0:00:04.7]} 92... Ba4 {[%clk
0:00:07.3]} 93. Rd2+ {[%clk 0:00:04.8]} 93... Kc5 {[%clk 0:00:07.7]} 94. Kf2
{[%clk 0:00:05.7]} 94... Rf6+ {[%clk 0:00:06.8]} 95. Ke3 {[%clk 0:00:06]} 95...
Re6+ {[%clk 0:00:07.2]} 96. Kf4 {[%clk 0:00:06.4]} 96... Re7 {[%clk 0:00:06.7]}
97. Bh5 {[%clk 0:00:06.1]} 97... Kb4 {[%clk 0:00:06.6]} 98. Rd4+ {[%clk
0:00:05.9]} 98... Ka3 {[%clk 0:00:07.1]} 99. Rd8 {[%clk 0:00:06.8]} 99... Ra7
{[%clk 0:00:06.6]} 100. Bg6 {[%clk 0:00:05.7]} 100... Bb3 {[%clk 0:00:06.5]}
101. Be4 {[%clk 0:00:05.3]} 101... Ra4 {[%clk 0:00:06.1]} 102. Ke3 {[%clk
0:00:05.3]} 102... Ra7 {[%clk 0:00:06.5]} 103. Rb8 {[%clk 0:00:04.9]} 103... Rc7
{[%clk 0:00:05.5]} 104. Kd4 {[%clk 0:00:04.9]} 104... Rc4+ {[%clk 0:00:05.3]}
105. Kd3 {[%clk 0:00:04.9]} 105... Rc7 {[%clk 0:00:05.7]} 106. Kd2 {[%clk
0:00:04.8]} 106... Rc5 {[%clk 0:00:03.6]} 107. Bd3 {[%clk 0:00:04.5]} 107... Rc7
{[%clk 0:00:03.6]} 108. Ra8+ {[%clk 0:00:04.6]} 108... Kb2 {[%clk 0:00:03.1]}
109. Rb8 {[%clk 0:00:05.5]} 109... Rd7 {[%clk 0:00:03.5]} 110. Ke3 {[%clk
0:00:04.9]} 110... Ka3 {[%clk 0:00:03.8]} 111. Bf5 {[%clk 0:00:03.9]} 111... Rc7
{[%clk 0:00:03.8]} 112. Kd4 {[%clk 0:00:03.9]} 112... Rc4+ {[%clk 0:00:03]} 113.
Ke5 {[%clk 0:00:03.7]} 113... Rc7 {[%clk 0:00:03.9]} 114. Kf6 {[%clk 0:00:04.6]}
114... Rc1 {[%clk 0:00:04]} 115. Ra8+ {[%clk 0:00:04.9]} 115... Kb2 {[%clk
0:00:03.2]} 116. Rb8 {[%clk 0:00:05.8]} 116... Rc3 {[%clk 0:00:04.1]} 117. Kg5
{[%clk 0:00:06]} 117... Ka3 {[%clk 0:00:04.3]} 118. Ra8+ {[%clk 0:00:05.5]}
118... Kb2 {[%clk 0:00:04.5]} 119. Rh8 {[%clk 0:00:06.4]} 119... Ka3 {[%clk
0:00:04.6]} 120. Rh2 {[%clk 0:00:06.8]} 120... Rc7 {[%clk 0:00:04.7]} 121. Rh4
{[%clk 0:00:06.5]} 121... Rc5 {[%clk 0:00:05.1]} 122. Kf4 {[%clk 0:00:07.4]}
122... Rc4+ {[%clk 0:00:04.9]} 123. Kg5 {[%clk 0:00:07.7]} 123... Rxh4 {[%clk
0:00:04.1]} 124. Kxh4 {[%clk 0:00:08.6]} 1/2-1/2

[Event "*** Titled Tuesday Blitz"]
[Site "Chess.com"]
[Date "2020.04.21"]
[Round "4"]
[White "MartinCerveny"]
[Black "ferch1ni"]
[Result "1-0"]
[WhiteElo "2610"]
[BlackElo "2321"]
[TimeControl "180+1"]
[EndTime "10:34:42 PDT"]
[Termination "MartinCerveny won by resignation"]

1. d4 {[%clk 0:03:00.9]} 1... Nf6 {[%clk 0:02:59.5]} 2. c4 {[%clk 0:03:00.6]}
2... g6 {[%clk 0:03:00]} 3. Nc3 {[%clk 0:02:59.7]} 3... d5 {[%clk 0:02:59.5]} 4.
cxd5 {[%clk 0:02:59]} 4... Nxd5 {[%clk 0:03:00.4]} 5. e4 {[%clk 0:02:59.1]} 5...
Nxc3 {[%clk 0:03:01]} 6. bxc3 {[%clk 0:03:00]} 6... Bg7 {[%clk 0:03:01.9]} 7.
Nf3 {[%clk 0:03:00.3]} 7... c5 {[%clk 0:03:02.6]} 8. Rb1 {[%clk 0:03:00.5]} 8...
O-O {[%clk 0:03:02.1]} 9. Be2 {[%clk 0:03:00.6]} 9... Nc6 {[%clk 0:03:02.1]} 10.
d5 {[%clk 0:03:00.7]} 10... Bxc3+ {[%clk 0:03:01.2]} 11. Bd2 {[%clk 0:03:00]}
11... Bxd2+ {[%clk 0:03:01.2]} 12. Qxd2 {[%clk 0:03:00.9]} 12... Nb8 {[%clk
0:02:54.3]} 13. h4 {[%clk 0:03:00.5]} 13... h5 {[%clk 0:02:50]} 14. Qh6 {[%clk
0:02:56.3]} 14... Bg4 {[%clk 0:02:24.4]} 15. Ng5 {[%clk 0:02:53.3]} 15... Qa5+
{[%clk 0:02:24.3]} 16. Kf1 {[%clk 0:02:49.2]} 16... Bxe2+ {[%clk 0:02:24.5]} 17.
Kg1 {[%clk 0:02:41.5]} 1-0

[Event "*** Titled Tuesday Blitz"]
[Site "Chess.com"]
[Date "2020.04.21"]
[Round "4"]
[White "BabyBoss31"]
[Black "hedgehog280"]
[Result "0-1"]
[WhiteElo "2361"]
[BlackElo "2651"]
[TimeControl "180+1"]
[EndTime "10:35:21 PDT"]
[Termination "hedgehog280 won by resignation"]

1. d4 {[%clk 0:03:00.9]} 1... a5 {[%clk 0:03:00.9]} 2. e4 {[%clk 0:02:55.8]}
2... e6 {[%clk 0:03:00]} 3. Nc3 {[%clk 0:02:54.7]} 3... Nf6 {[%clk 0:03:00.5]}
4. e5 {[%clk 0:02:54.3]} 4... Nd5 {[%clk 0:02:55.2]} 5. Nxd5 {[%clk 0:02:52.8]}
5... exd5 {[%clk 0:02:56.1]} 6. g3 {[%clk 0:02:53.2]} 6... c5 {[%clk 0:02:48.4]}
7. c3 {[%clk 0:02:52.2]} 7... Nc6 {[%clk 0:02:48.3]} 8. Bg2 {[%clk 0:02:49.1]}
8... cxd4 {[%clk 0:02:46.7]} 9. cxd4 {[%clk 0:02:50]} 9... d6 {[%clk 0:02:44.5]}
10. Bxd5 {[%clk 0:02:44.8]} 10... dxe5 {[%clk 0:02:43.2]} 11. Bxc6+ {[%clk
0:02:44.9]} 11... bxc6 {[%clk 0:02:42.6]} 12. dxe5 {[%clk 0:02:45.5]} 12... Bb4+
{[%clk 0:02:40.6]} 13. Bd2 {[%clk 0:02:45.1]} 13... Qd5 {[%clk 0:02:40.3]} 14.
f3 {[%clk 0:02:22.7]} 14... Ba6 {[%clk 0:02:29.1]} 15. Bxb4 {[%clk 0:02:19]}
15... Qxe5+ {[%clk 0:02:28.7]} 16. Ne2 {[%clk 0:02:14.8]} 16... axb4 {[%clk
0:02:29.2]} 17. Qd2 {[%clk 0:02:12]} 17... Rd8 {[%clk 0:02:27]} 18. Qc2 {[%clk
0:02:09.6]} 18... O-O {[%clk 0:02:21.7]} 19. Kf2 {[%clk 0:02:08.8]} 19... Rfe8
{[%clk 0:02:20.1]} 20. Rhe1 {[%clk 0:02:08.8]} 20... Qe3+ {[%clk 0:02:19.2]} 21.
Kg2 {[%clk 0:02:07.7]} 0-1

[Event "*** Titled Tuesday Blitz"]
[Site "Chess.com"]
[Date "2020.04.21"]
[Round "4"]
[White "Nikolakis2014"]
[Black "Ranindu2003"]
[Result "1-0"]
[WhiteElo "2689"]
[BlackElo "2504"]
[TimeControl "180+1"]
[EndTime "10:35:34 PDT"]
[Termination "Nikolakis2014 won by resignation"]

1. Nf3 {[%clk 0:03:00.9]} 1... Nf6 {[%clk 0:02:59.5]} 2. c4 {[%clk 0:03:00.5]}
2... e6 {[%clk 0:02:59.4]} 3. g3 {[%clk 0:03:00.5]} 3... d5 {[%clk 0:02:59.5]}
4. d4 {[%clk 0:02:59.4]} 4... Be7 {[%clk 0:02:59.1]} 5. Bg2 {[%clk 0:02:58.9]}
5... O-O {[%clk 0:02:59.3]} 6. O-O {[%clk 0:02:58.7]} 6... dxc4 {[%clk
0:02:59.5]} 7. Qc2 {[%clk 0:02:58.8]} 7... a6 {[%clk 0:02:59.4]} 8. a4 {[%clk
0:02:57.9]} 8... Bd7 {[%clk 0:02:58.1]} 9. Rd1 {[%clk 0:02:57.6]} 9... Bc6
{[%clk 0:02:57.4]} 10. Nc3 {[%clk 0:02:57]} 10... b5 {[%clk 0:02:44]} 11. axb5
{[%clk 0:02:50.9]} 11... axb5 {[%clk 0:02:44.7]} 12. Rxa8 {[%clk 0:02:51]} 12...
Bxa8 {[%clk 0:02:44]} 13. Nxb5 {[%clk 0:02:50.9]} 13... Qd5 {[%clk 0:02:15.3]}
14. Nxc7 {[%clk 0:02:46.6]} 14... Qc6 {[%clk 0:02:13.1]} 15. Nxa8 {[%clk
0:02:45.7]} 15... Qxa8 {[%clk 0:02:14]} 16. Qxc4 {[%clk 0:02:39.1]} 16... Nbd7
{[%clk 0:02:14.1]} 17. Ne5 {[%clk 0:02:35.8]} 17... Qa5 {[%clk 0:02:13.5]} 18.
Nc6 {[%clk 0:02:32.7]} 1-0

[Event "*** Titled Tuesday Blitz"]
[Site "Chess.com"]
[Date "2020.04.21"]
[Round "4"]
[White "LucaBrasi1968"]
[Black "silverback96"]
[Result "1-0"]
[WhiteElo "2499"]
[BlackElo "2186"]
[TimeControl "180+1"]
[EndTime "10:35:35 PDT"]
[Termination "LucaBrasi1968 won by resignation"]

1. e4 {[%clk 0:03:00.9]} 1... c5 {[%clk 0:03:00.1]} 2. c3 {[%clk 0:03:00.8]}
2... Nf6 {[%clk 0:02:58.8]} 3. e5 {[%clk 0:03:01.1]} 3... Nd5 {[%clk 0:02:59.4]}
4. d4 {[%clk 0:03:02]} 4... cxd4 {[%clk 0:02:59.9]} 5. Qxd4 {[%clk 0:03:02.3]}
5... e6 {[%clk 0:03:00.1]} 6. Nf3 {[%clk 0:03:02.5]} 6... Nc6 {[%clk 0:03:00.7]}
7. Qe4 {[%clk 0:03:03.1]} 7... f5 {[%clk 0:03:01.3]} 8. Qe2 {[%clk 0:03:03.3]}
8... g6 {[%clk 0:03:00.5]} 9. g3 {[%clk 0:03:03.8]} 9... Bg7 {[%clk 0:03:00.3]}
10. Bg2 {[%clk 0:03:03.8]} 10... Qc7 {[%clk 0:03:00.2]} 11. O-O {[%clk
0:03:00.5]} 11... Nxe5 {[%clk 0:02:57.5]} 12. Nxe5 {[%clk 0:02:45.1]} 12... Qxe5
{[%clk 0:02:57.1]} 13. Qxe5 {[%clk 0:02:45.1]} 13... Bxe5 {[%clk 0:02:52]} 14.
Bxd5 {[%clk 0:02:43.5]} 14... exd5 {[%clk 0:02:51.3]} 15. Re1 {[%clk 0:02:43.6]}
15... d6 {[%clk 0:02:51.4]} 16. f4 {[%clk 0:02:43.5]} 16... Kd7 {[%clk
0:02:46.3]} 17. fxe5 {[%clk 0:02:43.7]} 17... Re8 {[%clk 0:02:46.9]} 18. Bf4
{[%clk 0:02:42.6]} 18... b6 {[%clk 0:02:39.7]} 19. Nd2 {[%clk 0:02:39.3]} 19...
Bb7 {[%clk 0:02:38.5]} 20. exd6 {[%clk 0:02:37.2]} 20... a5 {[%clk 0:02:29]} 21.
Kf2 {[%clk 0:02:34.7]} 21... g5 {[%clk 0:02:25.1]} 22. Bxg5 {[%clk 0:02:30.4]}
22... Kxd6 {[%clk 0:02:26]} 23. Rxe8 {[%clk 0:02:27.1]} 23... Rxe8 {[%clk
0:02:26.9]} 24. Re1 {[%clk 0:02:27]} 24... Rg8 {[%clk 0:02:27.3]} 25. Bf4+
{[%clk 0:02:26.7]} 25... Kc6 {[%clk 0:02:26.6]} 26. Nf3 {[%clk 0:02:26]} 26...
a4 {[%clk 0:02:24.8]} 27. Nd4+ {[%clk 0:02:24.2]} 27... Kc5 {[%clk 0:02:22.5]}
28. Re7 {[%clk 0:02:17.5]} 1-0

[Event "*** Titled Tuesday Blitz"]
[Site "Chess.com"]
[Date "2020.04.21"]
[Round "4"]
[White "DrBergerBerger"]
[Black "crossingthestreet"]
[Result "1-0"]
[WhiteElo "2452"]
[BlackElo "2260"]
[TimeControl "180+1"]
[EndTime "10:35:46 PDT"]
[Termination "DrBergerBerger won by resignation"]

1. e4 {[%clk 0:03:00.9]} 1... e6 {[%clk 0:02:59.8]} 2. d4 {[%clk 0:03:00.3]}
2... d5 {[%clk 0:02:59]} 3. exd5 {[%clk 0:03:01.2]} 3... exd5 {[%clk 0:02:59.3]}
4. Nf3 {[%clk 0:03:01.2]} 4... Nf6 {[%clk 0:02:59.5]} 5. h3 {[%clk 0:03:00.8]}
5... Be7 {[%clk 0:02:49]} 6. c4 {[%clk 0:03:00]} 6... O-O {[%clk 0:02:35.6]} 7.
Nc3 {[%clk 0:02:57]} 7... Nc6 {[%clk 0:02:14.8]} 8. cxd5 {[%clk 0:02:50]} 8...
Nxd5 {[%clk 0:02:00.2]} 9. Bd3 {[%clk 0:02:35.3]} 9... Re8 {[%clk 0:01:23.3]}
10. O-O {[%clk 0:02:34.6]} 10... Bf6 {[%clk 0:01:23.3]} 1-0